fUSD/lending_fUSD_20240517
["ID","MTS","AMOUNT","RATE_DAILY","PERIOD"]
[327260128,1715943045056,-515.83592763,0.00012328,2]
[327260129,1715943045065,-500.0,0.00012328,2]
[327260130,1715943045074,-500.0,0.00012328,2]
[327260131,1715943045084,-512.81899729,0.00012328,2]
[327260132,1715943045098,-500.0,0.00012328,2]
[327260133,1715943045108,-500.0,0.00012328,2]
[327260134,1715943045117,-500.0,0.00012328,2]
[327260135,1715943045127,-500.0,0.00012328,2]
[327260136,1715943045136,-516.85443037,0.00012328,2]
[327260137,1715943045145,-500.0,0.00012328,2]
[327260138,1715943045155,-520.21911327,0.00012328,2]
[327260139,1715943045165,-500.0,0.00012328,2]
[327260140,1715943045174,-500.0,0.00012328,2]
[327260141,1715943045184,-350.79242741,0.00012328,2]
[327260142,1715943045213,-149.20757259,0.00012328,2]
[327260143,1715943045223,-500.0,0.00012328,2]
[327260144,1715943045232,-500.0,0.00012328,2]
[327260145,1715943045242,-312.1497675,0.00012328,2]
[327260146,1715943045251,-500.0,0.00012328,2]
[327260147,1715943045261,-500.0,0.00012328,2]
[327260148,1715943045270,-325.56415902,0.00012328,2]
[327260149,1715943045279,-500.0,0.00012328,2]
[327260150,1715943045288,-500.0,0.00012328,2]
[327260151,1715943045297,-500.0,0.00012328,2]
[327260152,1715943045307,-521.55964381,0.00012328,2]
[327260153,1715943045316,-500.0,0.00012328,2]
[327260154,1715943045325,-296.1788728,0.00012328,2]
[327260155,1715943045335,-500.0,0.00012328,2]
[327260156,1715943045344,-518.16731165,0.00012328,2]
[327260157,1715943045353,-500.0,0.00012328,2]
[327260158,1715943045363,-500.0,0.00012328,2]
[327260159,1715943045372,-500.0,0.00012328,2]
[327260160,1715943045381,-225.1393074,0.00012328,2]
[327260161,1715943045390,-500.0,0.00012328,2]
[327260162,1715943045399,-542.0950546,0.00012328,2]
[327260163,1715943045408,-500.0,0.00012328,2]
[327260164,1715943045418,-500.0,0.00012328,2]
[327260165,1715943045427,-522.19379806,0.00012328,2]
[327260166,1715943045436,-500.0,0.00012328,2]
[327260167,1715943045445,-626.24,0.00012328,2]
[327260168,1715943045454,-500.0,0.00012328,2]
[327260169,1715943045464,-500.0,0.00012328,2]
[327260170,1715943045473,-500.0,0.00012328,2]
[327260171,1715943045483,-500.0,0.00012328,2]
[327260172,1715943045492,-509.38724269,0.00012328,2]
[327260173,1715943045510,-517.6943416,0.00012328,2]
[327260174,1715943045522,-515.62845803,0.00012328,2]
[327260175,1715943045532,-112.54447026,0.00012328,2]
[327260176,1715943045638,-387.45552974,0.00012328,2]
[327260177,1715943045648,-500.0,0.00012328,2]
[327260178,1715943045657,-500.0,0.00012328,2]
[327260179,1715943045668,-549.13775684,0.00012328,2]
[327260180,1715943045677,-510.53042988,0.00012328,2]
[327260181,1715943045686,-500.0,0.00012328,2]
[327260182,1715943045696,-511.14078087,0.00012328,2]
[327260183,1715943045706,-500.0,0.00012328,2]
[327260184,1715943045715,-646.4088364,0.00012328,2]
[327260185,1715943045724,-500.0,0.00012328,2]
[327260186,1715943045734,-516.14196159,0.00012328,2]
[327260187,1715943045743,-500.0,0.00012328,2]
[327260188,1715943045752,-518.74158666,0.00012328,2]
[327260189,1715943045762,-516.69588782,0.00012328,2]
[327260190,1715943045772,-500.0,0.00012328,2]
[327260191,1715943045781,-519.25408302,0.00012328,2]
[327260192,1715943045790,-512.66660281,0.00012328,2]
[327260193,1715943045800,-500.0,0.00012328,2]
[327260194,1715943045809,-500.0,0.00012328,2]
[327260195,1715943045818,-513.03413538,0.00012328,2]
[327260196,1715943045827,-500.0,0.00012328,2]
[327260197,1715943045837,-590.43699586,0.00012328,2]
[327260198,1715943045846,-556.70842954,0.00012328,2]
[327260199,1715943045855,-500.0,0.00012328,2]
[327260200,1715943045864,-500.0,0.00012328,2]
[327260201,1715943045874,-509.16403064,0.00012328,2]
[327260202,1715943045883,-523.58519278,0.00012328,2]
[327260203,1715943045893,-500.0,0.00012328,2]
[327260204,1715943045902,-500.0,0.00012328,2]
[327260205,1715943045912,-228.35761474,0.00012328,2]
[327260206,1715943045922,-522.42076944,0.00012328,2]
[327260207,1715943045931,-500.0,0.00012328,2]
[327260208,1715943045941,-500.0,0.00012328,2]
[327260209,1715943045950,-598.95441063,0.00012328,2]
[327260210,1715943045959,-500.0,0.00012328,2]
[327260211,1715943045968,-500.0,0.00012328,2]
[327260212,1715943045977,-500.0,0.00012328,2]
[327260213,1715943045986,-500.0,0.00012328,2]
[327260214,1715943045996,-626.62982343,0.00012328,2]
[327260215,1715943046006,-500.0,0.00012328,2]
[327260216,1715943046016,-500.0,0.00012328,2]
[327260217,1715943046025,-513.81382904,0.00012328,2]
[327260218,1715943046034,-500.0,0.00012328,2]
[327260219,1715943046044,-500.0,0.00012328,2]
[327260220,1715943046053,-508.15185123,0.00012328,2]
[327260221,1715943046062,-500.0,0.00012328,2]
[327260222,1715943046072,-500.0,0.00012328,2]
[327260223,1715943046081,-500.0,0.00012328,2]
[327260224,1715943046095,-500.0,0.00012328,2]
[327260225,1715943046105,-500.0,0.00012328,2]
[327260226,1715943046114,-500.0,0.00012328,2]
[327260227,1715943046124,-493.01395792,0.00012328,2]
[327260228,1715943046134,-500.0,0.00012328,2]
[327260229,1715943046144,-500.0,0.00012328,2]
[327260230,1715943046153,-525.12336783,0.00012328,2]
[327260231,1715943046165,-500.0,0.00012328,2]
[327260232,1715943046176,-500.0,0.00012328,2]
[327260233,1715943046185,-500.0,0.00012328,2]
[327260234,1715943046195,-500.0,0.00012328,2]
[327260235,1715943046205,-518.94461437,0.00012328,2]
[327260236,1715943046214,-500.0,0.00012328,2]
[327260237,1715943046224,-500.0,0.00012328,2]
[327260238,1715943046234,-500.0,0.00012328,2]
[327260240,1715943046244,-500.0,0.00012328,2]
[327260242,1715943046254,-500.0,0.00012328,2]
[327260243,1715943046264,-500.0,0.00012328,2]
[327260244,1715943046274,-500.0,0.00012328,2]
[327260245,1715943046284,-517.32458296,0.00012328,2]
[327260246,1715943046293,-500.0,0.00012328,2]
[327260247,1715943046303,-500.0,0.00012328,2]
[327260248,1715943046312,-500.0,0.00012328,2]
[327260249,1715943046322,-508.89481488,0.00012328,2]
[327260250,1715943046331,-618.26,0.00012328,2]
[327260251,1715943046340,-500.0,0.00012328,2]
[327260252,1715943046350,-500.0,0.00012328,2]
[327260253,1715943046359,-500.0,0.00012328,2]
[327260254,1715943046369,-530.55777619,0.00012328,2]
[327260255,1715943046379,-500.0,0.00012328,2]
[327260256,1715943046388,-500.0,0.00012328,2]
[327260257,1715943046398,-500.0,0.00012328,2]
[327260258,1715943046407,-262.62195722,0.00012328,2]
[327260259,1715943046418,-192.56491957,0.00012328,2]
[327260260,1715943046427,-525.45732521,0.00012328,2]
[327260261,1715943046437,-500.0,0.00012328,2]
[327260262,1715943046447,-521.35495883,0.00012328,2]
[327260263,1715943046457,-521.77812428,0.00012328,2]
[327260264,1715943046467,-500.0,0.00012328,2]
[327260265,1715943046476,-527.4503286,0.00012328,2]
[327260266,1715943046486,-500.0,0.00012328,2]
[327260267,1715943046496,-500.0,0.00012328,2]
[327260268,1715943046506,-498.02892607,0.00012328,2]
[327260269,1715943046516,-514.15009627,0.00012328,2]
[327260270,1715943046525,-500.0,0.00012328,2]
[327260271,1715943046535,-500.0,0.00012328,2]
[327260272,1715943046545,-500.0,0.00012328,2]
[327260273,1715943046555,-500.0,0.00012328,2]
[327260274,1715943046564,-508.46137611,0.00012328,2]
[327260275,1715943046577,-500.0,0.00012328,2]
[327260276,1715943046587,-500.0,0.00012328,2]
[327260277,1715943046597,-500.0,0.00012328,2]
[327260278,1715943046606,-500.0,0.00012328,2]
[327260280,1715943046616,-512.51761095,0.00012328,2]
[327260281,1715943046626,-500.0,0.00012328,2]
[327260282,1715943046635,-511.08384074,0.00012328,2]
[327260283,1715943046645,-500.0,0.00012328,2]
[327260284,1715943046655,-500.0,0.00012328,2]
[327260285,1715943046665,-500.0,0.00012328,2]
[327260286,1715943046675,-523.24786762,0.00012328,2]
[327260287,1715943046685,-500.0,0.00012328,2]
[327260288,1715943046695,-515.32735112,0.00012328,2]
[327260289,1715943046704,-500.0,0.00012328,2]
[327260290,1715943046714,-500.0,0.00012328,2]
[327260291,1715943046724,-509.24211293,0.00012328,2]
[327260292,1715943046734,-500.0,0.00012328,2]
[327260293,1715943046743,-500.0,0.00012328,2]
[327260294,1715943046753,-500.0,0.00012328,2]
[327260295,1715943046763,-500.0,0.00012328,2]
[327260296,1715943046772,-500.0,0.00012328,2]
[327260297,1715943046783,-513.43694999,0.00012328,2]
[327260298,1715943046792,-219.25,0.00012328,2]
[327260299,1715943046802,-500.0,0.00012328,2]
[327260300,1715943046811,-500.0,0.00012328,2]
[327260301,1715943046821,-500.0,0.00012328,2]
[327260302,1715943046830,-500.0,0.00012328,2]
[327260303,1715943046839,-500.0,0.00012328,2]
[327260304,1715943046849,-500.0,0.00012328,2]
[327260305,1715943046858,-500.0,0.00012328,2]
[327260306,1715943046868,-500.0,0.00012328,2]
[327260307,1715943046877,-500.0,0.00012328,2]
[327260308,1715943046887,-500.0,0.00012328,2]
[327260309,1715943046896,-618.85640917,0.00012328,2]
[327260310,1715943046905,-500.0,0.00012328,2]
[327260311,1715943046915,-500.0,0.00012328,2]
[327260312,1715943046926,-500.0,0.00012328,2]
[327260313,1715943046935,-500.0,0.00012328,2]
[327260315,1715943046945,-500.0,0.00012328,2]
[327260317,1715943046954,-500.0,0.00012328,2]
[327260319,1715943046963,-500.0,0.00012328,2]
[327260321,1715943046973,-500.0,0.00012328,2]
[327260323,1715943046982,-500.0,0.00012328,2]
[327260325,1715943046991,-500.0,0.00012328,2]
[327260327,1715943047002,-500.0,0.00012328,2]
[327260329,1715943047011,-500.0,0.00012328,2]
[327260331,1715943047021,-500.0,0.00012328,2]
[327260333,1715943047030,-500.0,0.00012328,2]
[327260335,1715943047039,-500.0,0.00012328,2]
[327260337,1715943047049,-500.0,0.00012328,2]
[327260339,1715943047059,-500.0,0.00012328,2]
[327260341,1715943047068,-500.0,0.00012328,2]
[327260343,1715943047077,-500.0,0.00012328,2]
[327260345,1715943047089,-500.0,0.00012328,2]
[327260347,1715943047101,-508.99492557,0.00012328,2]
[327260349,1715943047111,-500.0,0.00012328,2]
[327260351,1715943047121,-500.0,0.00012328,2]
[327260353,1715943047131,-500.0,0.00012328,2]
[327260355,1715943047141,-500.0,0.00012328,2]
[327260357,1715943047151,-500.0,0.00012328,2]
[327260359,1715943047160,-500.0,0.00012328,2]
[327260361,1715943047172,-502.54787869,0.00012328,2]
[327260363,1715943047181,-205.39685171,0.00012328,2]
[327260365,1715943047190,-500.0,0.00012328,2]
[327260367,1715943047199,-500.0,0.00012328,2]
[327260369,1715943047209,-500.0,0.00012328,2]
[327260370,1715943047218,-500.0,0.00012328,2]
[327260373,1715943047228,-500.0,0.00012328,2]
[327260375,1715943047237,-500.0,0.00012328,2]
[327260377,1715943047247,-500.0,0.00012328,2]
[327260379,1715943047256,-533.18241638,0.00012328,2]
[327260381,1715943047267,-500.0,0.00012328,2]
[327260383,1715943047276,-500.0,0.00012328,2]
[327260385,1715943047285,-500.0,0.00012328,2]
[327260387,1715943047294,-500.0,0.00012328,2]
[327260389,1715943047304,-500.0,0.00012328,2]
[327260391,1715943047313,-500.0,0.00012328,2]
[327260393,1715943047322,-510.18369312,0.00012328,2]
[327260394,1715943047332,-500.0,0.00012328,2]
[327260395,1715943047341,-500.0,0.00012328,2]
[327260396,1715943047351,-220.0,0.00012328,2]
[327260397,1715943047360,-500.0,0.00012328,2]
[327260398,1715943047370,-500.0,0.00012328,2]
[327260399,1715943047379,-500.0,0.00012328,2]
[327260400,1715943047388,-500.0,0.00012328,2]
[327260401,1715943047398,-359.52021685,0.00012328,2]
[327260402,1715943047407,-500.0,0.00012328,2]
[327260403,1715943047647,-510.78853452,0.00012328,2]
[327260404,1715943047657,-544.23317906,0.00012328,2]
[327260405,1715943047666,-500.0,0.00012328,2]
[327260406,1715943047677,-500.0,0.00012328,2]
[327260407,1715943047686,-500.0,0.00012328,2]
[327260408,1715943047695,-458.87746379,0.00012328,2]
[327260409,1715943047704,-445.81,0.00012328,2]
[327260410,1715943047714,-265.6800996,0.00012328,2]
[327260411,1715943047723,-500.0,0.00012328,2]
[327260412,1715943047734,-519.83982927,0.00012328,2]
[327260413,1715943047744,-500.0,0.00012328,2]
[327260414,1715943047753,-500.0,0.00012328,2]
[327260415,1715943047763,-500.0,0.00012328,2]
[327260416,1715943047772,-510.43631143,0.00012328,2]
[327260417,1715943047781,-551.50203657,0.00012328,2]
[327260418,1715943047790,-500.0,0.00012328,2]
[327260419,1715943047800,-613.91,0.00012328,2]
[327260420,1715943047809,-500.0,0.00012328,2]
[327260421,1715943047818,-500.0,0.00012328,2]
[327260422,1715943047827,-500.0,0.00012328,2]
[327260423,1715943047836,-500.0,0.00012328,2]
[327260424,1715943047845,-500.0,0.00012328,2]
[327260425,1715943047855,-500.0,0.00012328,2]
[327260426,1715943047864,-500.0,0.00012328,2]
[327260427,1715943047874,-500.0,0.00012328,2]
[327260428,1715943047883,-500.0,0.00012328,2]
[327260429,1715943047892,-500.0,0.00012328,2]
[327260430,1715943047901,-500.0,0.00012328,2]
[327260431,1715943047910,-357.127669,0.00012328,2]
[327260432,1715943047920,-500.0,0.00012328,2]
[327260433,1715943047929,-500.0,0.00012328,2]
[327260434,1715943047939,-500.0,0.00012328,2]
[327260435,1715943047948,-500.0,0.00012328,2]
[327260436,1715943047957,-500.0,0.00012328,2]
[327260437,1715943047967,-500.0,0.00012328,2]
[327260438,1715943047976,-500.0,0.00012328,2]
[327260439,1715943047986,-500.0,0.00012328,2]
[327260440,1715943047995,-500.0,0.00012328,2]
[327260441,1715943048005,-534.98,0.00012328,2]
[327260442,1715943048015,-500.0,0.00012328,2]
[327260443,1715943048025,-500.0,0.00012328,2]
[327260444,1715943048034,-500.0,0.00012328,2]
[327260445,1715943048044,-500.0,0.00012328,2]
[327260446,1715943048053,-500.0,0.00012328,2]
[327260447,1715943048063,-500.0,0.00012328,2]
[327260448,1715943048073,-595.40861442,0.00012328,2]
[327260449,1715943048083,-500.0,0.00012328,2]
[327260450,1715943048098,-513.92102995,0.00012328,2]
[327260451,1715943048108,-500.0,0.00012328,2]
[327260452,1715943048117,-310.07,0.00012328,2]
[327260453,1715943048127,-800.26,0.00012328,2]
[327260454,1715943048137,-800.26,0.00012328,2]
[327260455,1715943048146,-800.26,0.00012328,2]
[327260456,1715943048155,-800.26,0.00012328,2]
[327260457,1715943048166,-500.0,0.00012328,2]
[327260458,1715943048176,-500.0,0.00012328,2]
[327260459,1715943048185,-500.0,0.00012328,2]
[327260460,1715943048195,-500.0,0.00012328,2]
[327260461,1715943048205,-436.08701415,0.00012328,2]
[327260462,1715943048215,-500.0,0.00012328,2]
[327260463,1715943048224,-212.69,0.00012328,2]
[327260464,1715943048233,-500.0,0.00012328,2]
[327260465,1715943048243,-500.0,0.00012328,2]
[327260466,1715943048252,-621.14,0.00012328,2]
[327260467,1715943048262,-517.9319932,0.00012328,2]
[327260468,1715943048271,-500.0,0.00012328,2]
[327260469,1715943048280,-500.0,0.00012328,2]
[327260470,1715943048289,-500.0,0.00012328,2]
[327260471,1715943048298,-326.35,0.00012328,2]
[327260472,1715943048307,-500.0,0.00012328,2]
[327260473,1715943048316,-553.35,0.00012328,2]
[327260474,1715943048326,-500.0,0.00012328,2]
[327260475,1715943048335,-518.73973767,0.00012328,2]
[327260476,1715943048344,-534.52060873,0.00012328,2]
[327260477,1715943048353,-500.0,0.00012328,2]
[327260478,1715943048362,-195.56,0.00012328,2]
[327260479,1715943048371,-500.0,0.00012328,2]
[327260480,1715943048381,-500.0,0.00012328,2]
[327260481,1715943048390,-500.0,0.00012328,2]
[327260482,1715943048400,-500.0,0.00012328,2]
[327260483,1715943048409,-500.0,0.00012328,2]
[327260484,1715943048419,-500.0,0.00012328,2]
[327260485,1715943048428,-267.12217693,0.00012328,2]
[327260486,1715943048437,-500.0,0.00012328,2]
[327260487,1715943048447,-500.0,0.00012328,2]
[327260488,1715943048456,-538.99133718,0.00012328,2]
[327260489,1715943048465,-500.0,0.00012328,2]
[327260490,1715943048474,-500.0,0.00012328,2]
[327260491,1715943048483,-412.16,0.00012328,2]
[327260492,1715943048492,-500.0,0.00012328,2]
[327260493,1715943048502,-500.0,0.00012328,2]
[327260494,1715943048511,-500.0,0.00012328,2]
[327260495,1715943048520,-500.0,0.00012328,2]
[327260496,1715943048529,-500.0,0.00012328,2]
[327260497,1715943048538,-506.02941163,0.00012328,2]
[327260498,1715943048548,-500.0,0.00012328,2]
[327260499,1715943048558,-500.0,0.00012328,2]
[327260500,1715943048569,-508.05053922,0.00012328,2]
[327260501,1715943048578,-500.0,0.00012328,2]
[327260502,1715943048588,-500.0,0.00012328,2]
[327260503,1715943048599,-500.0,0.00012328,2]
[327260504,1715943048608,-500.0,0.00012328,2]
[327260505,1715943048619,-511.55445948,0.00012328,2]
[327260506,1715943048629,-228.39381522,0.00012328,2]
[327260507,1715943048639,-630.575,0.00012328,2]
[327260508,1715943048648,-500.0,0.00012328,2]
[327260509,1715943048662,-509.91673588,0.00012328,2]
[327260510,1715943048693,-500.0,0.00012328,2]
[327260511,1715943048726,-588.6842907,0.00012328,2]
[327260512,1715943048750,-500.0,0.00012328,2]
[327260513,1715943048772,-500.0,0.00012328,2]
[327260514,1715943048795,-500.0,0.00012328,2]
[327260515,1715943048816,-500.0,0.00012328,2]
[327260516,1715943048829,-500.0,0.00012328,2]
[327260517,1715943048838,-500.0,0.00012328,2]
[327260518,1715943048847,-500.0,0.00012328,2]
[327260519,1715943048856,-243.38,0.00012328,2]
[327260520,1715943048865,-500.0,0.00012328,2]
[327260521,1715943048874,-500.0,0.00012328,2]
[327260522,1715943048883,-500.0,0.00012328,2]
[327260523,1715943048893,-500.0,0.00012328,2]
[327260524,1715943048902,-500.0,0.00012328,2]
[327260525,1715943048911,-500.0,0.00012328,2]
[327260526,1715943048921,-500.0,0.00012328,2]
[327260527,1715943048930,-500.0,0.00012328,2]
[327260528,1715943048939,-500.0,0.00012328,2]
[327260529,1715943048948,-500.0,0.00012328,2]
[327260530,1715943048957,-500.0,0.00012328,2]
[327260531,1715943048966,-500.0,0.00012328,2]
[327260532,1715943048975,-500.0,0.00012328,2]
[327260533,1715943048985,-535.58773164,0.00012328,2]
[327260534,1715943048994,-500.0,0.00012328,2]
[327260535,1715943049004,-500.0,0.00012328,2]
[327260536,1715943049013,-514.26,0.00012328,2]
[327260537,1715943049022,-500.0,0.00012328,2]
[327260538,1715943049032,-500.0,0.00012328,2]
[327260539,1715943049041,-516.19862713,0.00012328,2]
[327260540,1715943049051,-583.50056394,0.00012328,2]
[327260541,1715943049060,-648.45437769,0.00012328,2]
[327260542,1715943049070,-839.94,0.00012328,2]
[327260543,1715943049079,-839.94,0.00012328,2]
[327260544,1715943049093,-839.94,0.00012328,2]
[327260545,1715943049102,-579.82955866,0.00012328,2]
[327260546,1715943049112,-839.94,0.00012328,2]
[327260547,1715943049121,-568.44962421,0.00012328,2]
[327260548,1715943049133,-500.0,0.00012328,2]
[327260549,1715943049143,-500.0,0.00012328,2]
[327260550,1715943049154,-500.0,0.00012328,2]
[327260551,1715943049163,-517.85274384,0.00012328,2]
[327260552,1715943049175,-500.0,0.00012328,2]
[327260553,1715943049185,-500.0,0.00012328,2]
[327260554,1715943049195,-500.0,0.00012328,2]
[327260555,1715943049204,-500.0,0.00012328,2]
[327260556,1715943049213,-500.0,0.00012328,2]
[327260557,1715943049223,-511.94002793,0.00012328,2]
[327260558,1715943049233,-500.0,0.00012328,2]
[327260559,1715943049243,-303.30723946,0.00012328,2]
[327260560,1715943049253,-500.0,0.00012328,2]
[327260561,1715943049263,-500.0,0.00012328,2]
[327260562,1715943049272,-500.0,0.00012328,2]
[327260563,1715943049282,-526.03313623,0.00012328,2]
[327260564,1715943049293,-500.0,0.00012328,2]
[327260565,1715943049303,-500.0,0.00012328,2]
[327260566,1715943049312,-500.0,0.00012328,2]
[327260567,1715943049332,-500.0,0.00012328,2]
[327260568,1715943049342,-500.0,0.00012328,2]
[327260569,1715943049351,-500.0,0.00012328,2]
[327260570,1715943049361,-500.0,0.00012328,2]
[327260571,1715943049370,-500.0,0.00012328,2]
[327260572,1715943049380,-192.91512819,0.00012328,2]
[327260573,1715943049389,-263.95793147,0.00012328,2]
[327260574,1715943049399,-500.0,0.00012328,2]
[327260575,1715943049409,-500.0,0.00012328,2]
[327260576,1715943049418,-369.67588843,0.00012328,2]
[327260577,1715943049572,-130.32411157,0.00012328,2]
[327260578,1715943049582,-500.0,0.00012328,2]
[327260579,1715943049591,-500.0,0.00012328,2]
[327260580,1715943049601,-500.0,0.00012328,2]
[327260581,1715943049611,-526.60161388,0.00012328,2]
[327260582,1715943049621,-500.0,0.00012328,2]
[327260583,1715943049631,-500.0,0.00012328,2]
[327260584,1715943049641,-126.67427455,0.00012328,2]
[327260585,1715943049667,-373.32572545,0.00012328,2]
[327260586,1715943049678,-500.0,0.00012328,2]
[327260587,1715943049687,-516.33060181,0.00012328,2]
[327260588,1715943049698,-500.0,0.00012328,2]
[327260589,1715943049707,-500.0,0.00012328,2]
[327260590,1715943049721,-434.66710808,0.00012328,2]
[327260591,1715943049867,-5900.0,0.00012327,2]
[327260592,1715943049876,-327.79289192,0.00012328,2]
[327260593,1715943049886,-648.78531364,0.00012328,2]
[327260594,1715943049898,-762.46,0.00012328,2]
[327260595,1715943049908,-762.46,0.00012328,2]
[327260596,1715943049917,-762.46,0.00012328,2]
[327260597,1715943049930,-500.0,0.00012328,2]
[327260598,1715943049940,-500.0,0.00012328,2]
[327260599,1715943049949,-500.0,0.00012328,2]
[327260600,1715943049959,-500.0,0.00012328,2]
[327260601,1715943049968,-500.0,0.00012328,2]
[327260602,1715943049978,-500.0,0.00012328,2]
[327260603,1715943049987,-500.0,0.00012328,2]
[327260604,1715943049997,-500.0,0.00012328,2]
[327260605,1715943050007,-513.91577729,0.00012328,2]
[327260606,1715943050016,-500.0,0.00012328,2]
[327260607,1715943050027,-500.0,0.00012328,2]
[327260608,1715943050037,-500.0,0.00012328,2]
[327260609,1715943050047,-500.0,0.00012328,2]
[327260610,1715943050057,-639.74756518,0.00012328,2]
[327260611,1715943050066,-500.0,0.00012328,2]
[327260612,1715943050076,-500.0,0.00012328,2]
[327260613,1715943050086,-500.0,0.00012328,2]
[327260614,1715943050100,-522.50997722,0.00012328,2]
[327260615,1715943050109,-500.0,0.00012328,2]
[327260616,1715943050119,-500.0,0.00012328,2]
[327260617,1715943050128,-500.0,0.00012328,2]
[327260618,1715943050138,-500.0,0.00012328,2]
[327260619,1715943050148,-500.0,0.00012328,2]
[327260620,1715943050158,-500.0,0.00012328,2]
[327260621,1715943050172,-500.0,0.00012328,2]
[327260622,1715943050183,-500.0,0.00012328,2]
[327260623,1715943050192,-500.0,0.00012328,2]
[327260624,1715943050202,-500.0,0.00012328,2]
[327260625,1715943050211,-500.0,0.00012328,2]
[327260626,1715943050220,-518.33866923,0.00012328,2]
[327260627,1715943050230,-500.0,0.00012328,2]
[327260628,1715943050239,-500.0,0.00012328,2]
[327260629,1715943050249,-500.0,0.00012328,2]
[327260630,1715943050259,-500.0,0.00012328,2]
[327260631,1715943050269,-601.38,0.00012328,2]
[327260632,1715943050278,-6678.97565869,0.0001235,2]
[327260633,1715943050288,-165.577783,0.00012355,2]
[327260634,1715943050297,-200.0,0.00012378,2]
[327260635,1715943050307,-157.51187108,0.00012378,2]
[327260636,1715943050317,-250.35208804,0.00012378,2]
[327260637,1715943050327,-158.25442641,0.00012378,2]
[327260638,1715943050336,-500.0,0.00012378,2]
[327260639,1715943050345,-511.99463486,0.00012378,2]
[327260640,1715943050356,-518.38160093,0.00012378,2]
[327260641,1715943050365,-620.71029856,0.00012378,2]
[327260642,1715943050374,-155.50720412,0.00012378,2]
[327260643,1715943050384,-505.99900681,0.00012378,2]
[327260644,1715943050394,-500.0,0.00012378,2]
[327260645,1715943050404,-157.26309299,0.00012378,2]
[327260646,1715943050413,-211.68992907,0.00012378,2]
[327260647,1715943050423,-7.44098875,0.00012378,2]
[327260648,1715943050438,-492.55901125,0.00012378,2]
[327260649,1715943050448,-508.65603875,0.00012379,2]
[327260650,1715943050458,-500.0,0.00012379,2]
[327260651,1715943050467,-500.0,0.00012379,2]
[327260652,1715943050476,-500.0,0.00012379,2]
[327260653,1715943050486,-519.38595352,0.00012379,2]
[327260654,1715943050495,-517.95,0.00012379,2]
[327260655,1715943050505,-519.85439108,0.00012379,2]
[327260656,1715943050515,-518.61385164,0.00012379,2]
[327260657,1715943050525,-538.61,0.00012379,2]
[327260658,1715943050535,-620.62520535,0.00012379,2]
[327260659,1715943050545,-517.42057235,0.00012379,2]
[327260660,1715943050555,-460.57,0.00012379,2]
[327260661,1715943050564,-521.50344263,0.00012379,2]
[327260662,1715943050574,-619.39688287,0.00012379,2]
[327260663,1715943050583,-517.10810967,0.00012379,2]
[327260664,1715943050592,-338.99,0.00012379,2]
[327260665,1715943050602,-450.47,0.00012379,2]
[327260666,1715943050611,-500.0,0.00012379,2]
[327260667,1715943050620,-520.53343794,0.00012379,2]
[327260668,1715943050629,-500.0,0.00012379,2]
[327260669,1715943050639,-500.0,0.00012379,2]
[327260670,1715943050648,-540.94252642,0.00012379,2]